[Event "Titled Tuesday Blitz March 21 Early 2023"]
[White "Svane, Frederik"]
[Black "Duda, Jan-Krzysztof"]
[WhiteFideId "12923044"]
[BlackFideId "1170546"]
[WhiteElo "2502"]
[BlackElo "2790"]
[Result "0-1"]
[Round "09"]
[TimeControl "180+2"]
[Date "2023.03.21"]
[WhiteClock "0:00:04"]
[BlackClock "0:00:08"]

1. c4 {[%clk 0:03:00]}  Nf6 {[%clk 0:02:58]} 2. Nf3 {[%clk 0:02:58]}  g6 {[%clk 0:02:58]} 3. Nc3 {[%clk 0:02:57]}  d5 {[%clk 0:02:58]} 4. cxd5 {[%clk 0:02:57]}  Nxd5 {[%clk 0:02:59]} 5. h4 {[%clk 0:02:57]}  Bg7 {[%clk 0:02:58]} 6. e4 {[%clk 0:02:55]}  Nxc3 {[%clk 0:02:58]} 7. dxc3 {[%clk 0:02:56]}  Qxd1+ {[%clk 0:02:57]} 8. Kxd1 {[%clk 0:02:57]}  Nd7 {[%clk 0:02:51]} 9. Kc2 {[%clk 0:02:49]}  b6 {[%clk 0:02:51]} 10. Be3 {[%clk 0:02:47]}  Bb7 {[%clk 0:02:52]} 11. Nd2 {[%clk 0:02:47]}  O-O-O {[%clk 0:02:50]} 12. f3 {[%clk 0:02:41]}  h5 {[%clk 0:02:38]} 13. a4 {[%clk 0:02:40]}  a5 {[%clk 0:02:31]} 14. Bc4 {[%clk 0:02:38]}  e6 {[%clk 0:02:31]} 15. Rad1 {[%clk 0:02:30]}  Bc6 {[%clk 0:02:27]} 16. b3 {[%clk 0:02:27]}  Ne5 {[%clk 0:02:11]} 17. Be2 {[%clk 0:02:27]}  f5 {[%clk 0:02:07]} 18. Bd4 {[%clk 0:02:18]}  Rhg8 {[%clk 0:01:54]} 19. Nc4 {[%clk 0:02:13]}  Nxc4 {[%clk 0:01:38]} 20. Bxc4 {[%clk 0:02:12]}  Rde8 {[%clk 0:01:38]} 21. Bxg7 {[%clk 0:01:30]}  Rxg7 {[%clk 0:01:39]} 22. e5 {[%clk 0:01:31]}  g5 {[%clk 0:01:31]} 23. hxg5 {[%clk 0:01:29]}  Rxg5 {[%clk 0:01:32]} 24. Rd2 {[%clk 0:01:30]}  Kb7 {[%clk 0:01:12]} 25. Rh2 {[%clk 0:01:27]}  Re7 {[%clk 0:00:50]} 26. Rh4 {[%clk 0:01:13]}  Reg7 {[%clk 0:00:26]} 27. Bf1 {[%clk 0:00:55]}  Bd5 {[%clk 0:00:22]} 28. b4 {[%clk 0:00:48]}  axb4 {[%clk 0:00:16]} 29. cxb4 {[%clk 0:00:48]}  f4 {[%clk 0:00:13]} 30. Rxf4 {[%clk 0:00:48]}  Rxe5 {[%clk 0:00:14]} 31. Rfd4 {[%clk 0:00:41]}  Kc6 {[%clk 0:00:07]} 32. Bc4 {[%clk 0:00:36]}  Rf7 {[%clk 0:00:03]} 33. f4 {[%clk 0:00:32]}  Ref5 {[%clk 0:00:03]} 34. g3 {[%clk 0:00:32]}  Rg7 {[%clk 0:00:02]} 35. R2d3 {[%clk 0:00:22]}  Kd6 {[%clk 0:00:03]} 36. b5 {[%clk 0:00:21]}  Kc5 {[%clk 0:00:02]} 37. Kc3 {[%clk 0:00:21]}  Rgf7 {[%clk 0:00:02]} 38. Re3 {[%clk 0:00:21]}  Rg7 {[%clk 0:00:03]} 39. Bxd5 {[%clk 0:00:14]}  exd5 {[%clk 0:00:04]} 40. Rdd3 {[%clk 0:00:14]}  Kd6 {[%clk 0:00:04]} 41. Re8 {[%clk 0:00:13]}  h4 {[%clk 0:00:03]} 42. gxh4 {[%clk 0:00:11]}  Rxf4 {[%clk 0:00:03]} 43. Rd8+ {[%clk 0:00:11]}  Ke6 {[%clk 0:00:04]} 44. R8xd5 {[%clk 0:00:10]}  Rxa4 {[%clk 0:00:04]} 45. h5 {[%clk 0:00:09]}  Ra3+ {[%clk 0:00:03]} 46. Kb4 {[%clk 0:00:07]}  Rxd3 {[%clk 0:00:04]} 47. Rxd3 {[%clk 0:00:08]}  Rg4+ {[%clk 0:00:04]} 48. Kc3 {[%clk 0:00:08]}  Rh4 {[%clk 0:00:04]} 49. Rg3 {[%clk 0:00:02]}  Rxh5 {[%clk 0:00:04]} 50. Rg6+ {[%clk 0:00:02]}  Kd7 {[%clk 0:00:04]} 51. Kc4 {[%clk 0:00:02]}  Rc5+ {[%clk 0:00:04]} 52. Kb4 {[%clk 0:00:03]}  Re5 {[%clk 0:00:05]} 53. Rf6 {[%clk 0:00:03]}  Re4+ {[%clk 0:00:05]} 54. Kc3 {[%clk 0:00:04]}  Re6 {[%clk 0:00:06]} 55. Rf5 {[%clk 0:00:04]}  Kd6 {[%clk 0:00:06]} 56. Kd4 {[%clk 0:00:04]}  Rh6 {[%clk 0:00:07]} 57. Rd5+ {[%clk 0:00:04]}  Ke6 {[%clk 0:00:07]} 58. Re5+ {[%clk 0:00:05]}  Kd7 {[%clk 0:00:07]} 59. Rd5+ {[%clk 0:00:06]}  Rd6 {[%clk 0:00:08]} 60. Ke5 {[%clk 0:00:05]}  Ke7 {[%clk 0:00:06]} 61. Ke4 {[%clk 0:00:04]}  Rxd5 {[%clk 0:00:04]} 62. Kxd5 {[%clk 0:00:05]}  Kd7 {[%clk 0:00:04]} 63. Kc4 {[%clk 0:00:01]}  Ke6 {[%clk 0:00:04]} 64. Kd4 {[%clk 0:00:01]}  Kd6 {[%clk 0:00:05]} 65. Kc4 {[%clk 0:00:01]}  Ke5 {[%clk 0:00:05]} 66. Kc3 {[%clk 0:00:01]}  Kd5 {[%clk 0:00:06]} 67. Kb4 {[%clk 0:00:01]}  Kd4 {[%clk 0:00:06]} 68. Kb3 {[%clk 0:00:02]}  Kc5 {[%clk 0:00:07]} 69. Ka4 {[%clk 0:00:03]}  Kc4 {[%clk 0:00:08]} 70. Ka3 {[%clk 0:00:04]}  Kxb5 {[%clk 0:00:08]} 0-1


[Site "https://www.chess.com"]

[Event "Titled Tuesday Blitz March 21 Early 2023"]
[White "Jones, Gawain C B"]
[Black "Pranav, V"]
[WhiteFideId "409561"]
[BlackFideId "25060783"]
[WhiteElo "2645"]
[BlackElo "2500"]
[Result "1-0"]
[Round "09"]
[TimeControl "180+2"]
[Date "2023.03.21"]
[WhiteClock "0:00:06"]
[BlackClock "0:00:06"]

1. Nf3 {[%clk 0:03:00]}  Nf6 {[%clk 0:02:59]} 2. c4 {[%clk 0:02:59]}  e6 {[%clk 0:02:59]} 3. g3 {[%clk 0:02:58]}  d5 {[%clk 0:02:59]} 4. Bg2 {[%clk 0:02:59]}  d4 {[%clk 0:02:54]} 5. O-O {[%clk 0:02:57]}  Nc6 {[%clk 0:02:48]} 6. e3 {[%clk 0:02:55]}  e5 {[%clk 0:02:48]} 7. exd4 {[%clk 0:02:54]}  exd4 {[%clk 0:02:49]} 8. d3 {[%clk 0:02:46]}  Be7 {[%clk 0:02:48]} 9. Bf4 {[%clk 0:02:44]}  O-O {[%clk 0:02:47]} 10. Ne5 {[%clk 0:02:44]}  Nxe5 {[%clk 0:02:23]} 11. Bxe5 {[%clk 0:02:45]}  Ng4 {[%clk 0:02:16]} 12. Bf4 {[%clk 0:02:44]}  Bg5 {[%clk 0:02:17]} 13. Qc1 {[%clk 0:02:38]}  Bxf4 {[%clk 0:02:02]} 14. Qxf4 {[%clk 0:02:39]}  Re8 {[%clk 0:02:03]} 15. Na3 {[%clk 0:02:30]}  c6 {[%clk 0:01:38]} 16. Rae1 {[%clk 0:02:28]}  Rf8 {[%clk 0:01:03]} 17. Nc2 {[%clk 0:02:19]}  Nf6 {[%clk 0:00:56]} 18. Nxd4 {[%clk 0:02:08]}  c5 {[%clk 0:00:56]} 19. Nb5 {[%clk 0:02:00]}  Bd7 {[%clk 0:00:49]} 20. Nc7 {[%clk 0:01:37]}  Rb8 {[%clk 0:00:46]} 21. Nd5 {[%clk 0:01:35]}  Nxd5 {[%clk 0:00:46]} 22. Bxd5 {[%clk 0:01:35]}  Bc6 {[%clk 0:00:46]} 23. Re5 {[%clk 0:01:26]}  Kh8 {[%clk 0:00:45]} 24. Bxc6 {[%clk 0:00:51]}  bxc6 {[%clk 0:00:46]} 25. b3 {[%clk 0:00:50]}  Qxd3 {[%clk 0:00:44]} 26. Rxc5 {[%clk 0:00:49]}  Qc2 {[%clk 0:00:44]} 27. Rxc6 {[%clk 0:00:42]}  Qxa2 {[%clk 0:00:43]} 28. Rc7 {[%clk 0:00:41]}  Qxb3 {[%clk 0:00:33]} 29. Rxf7 {[%clk 0:00:32]}  Kg8 {[%clk 0:00:32]} 30. Rxf8+ {[%clk 0:00:30]}  Rxf8 {[%clk 0:00:33]} 31. Qe4 {[%clk 0:00:28]}  a5 {[%clk 0:00:33]} 32. Qd5+ {[%clk 0:00:24]}  Kh8 {[%clk 0:00:33]} 33. Qxa5 {[%clk 0:00:20]}  Qxc4 {[%clk 0:00:33]} 34. h4 {[%clk 0:00:19]}  h6 {[%clk 0:00:33]} 35. Qe5 {[%clk 0:00:19]}  Qc6 {[%clk 0:00:32]} 36. Qe3 {[%clk 0:00:19]}  Qc2 {[%clk 0:00:31]} 37. Re1 {[%clk 0:00:18]}  Qf5 {[%clk 0:00:30]} 38. Re2 {[%clk 0:00:17]}  Rd8 {[%clk 0:00:27]} 39. Kg2 {[%clk 0:00:17]}  Qd5+ {[%clk 0:00:24]} 40. Qe4 {[%clk 0:00:17]}  Qd7 {[%clk 0:00:22]} 41. Rc2 {[%clk 0:00:13]}  Re8 {[%clk 0:00:20]} 42. Qc6 {[%clk 0:00:13]}  Qf7 {[%clk 0:00:20]} 43. Qc4 {[%clk 0:00:11]}  Qg6 {[%clk 0:00:18]} 44. Rd2 {[%clk 0:00:09]}  Rf8 {[%clk 0:00:16]} 45. Qd5 {[%clk 0:00:06]}  Qf6 {[%clk 0:00:15]} 46. Qe4 {[%clk 0:00:05]}  Qf7 {[%clk 0:00:14]} 47. Qe3 {[%clk 0:00:05]}  Qb7+ {[%clk 0:00:14]} 48. Kh2 {[%clk 0:00:04]}  Qb1 {[%clk 0:00:09]} 49. Re2 {[%clk 0:00:04]}  Qf5 {[%clk 0:00:09]} 50. Kg1 {[%clk 0:00:03]}  Rd8 {[%clk 0:00:08]} 51. Kg2 {[%clk 0:00:03]}  Rf8 {[%clk 0:00:08]} 52. f4 {[%clk 0:00:03]}  Qd5+ {[%clk 0:00:09]} 53. Qe4 {[%clk 0:00:03]}  Qb5 {[%clk 0:00:09]} 54. Qe7 {[%clk 0:00:03]}  Rc8 {[%clk 0:00:08]} 55. Qe4 {[%clk 0:00:04]}  Qb3 {[%clk 0:00:07]} 56. Qf3 {[%clk 0:00:04]}  Qb5 {[%clk 0:00:06]} 57. h5 {[%clk 0:00:04]}  Qd7 {[%clk 0:00:05]} 58. g4 {[%clk 0:00:04]}  Qf7 {[%clk 0:00:04]} 59. f5 {[%clk 0:00:05]}  Qf6 {[%clk 0:00:04]} 60. Kg3 {[%clk 0:00:05]}  Qd6+ {[%clk 0:00:05]} 61. Kg2 {[%clk 0:00:05]}  Qf6 {[%clk 0:00:03]} 62. Qe4 {[%clk 0:00:03]}  Qf7 {[%clk 0:00:03]} 63. Qe6 {[%clk 0:00:03]}  Qb7+ {[%clk 0:00:03]} 64. Kg3 {[%clk 0:00:03]}  Qb8+ {[%clk 0:00:03]} 65. Kh3 {[%clk 0:00:03]}  Rc3+ {[%clk 0:00:04]} 66. Re3 {[%clk 0:00:04]}  Rc8 {[%clk 0:00:04]} 67. f6 {[%clk 0:00:04]}  Rf8 {[%clk 0:00:02]} 68. fxg7+ {[%clk 0:00:03]}  Kxg7 {[%clk 0:00:03]} 69. Qg6+ {[%clk 0:00:04]}  Kh8 {[%clk 0:00:04]} 70. Qxh6+ {[%clk 0:00:04]}  Kg8 {[%clk 0:00:04]} 71. Qg6+ {[%clk 0:00:05]}  Kh8 {[%clk 0:00:05]} 72. Qh6+ {[%clk 0:00:05]}  Kg8 {[%clk 0:00:06]} 73. Qg5+ {[%clk 0:00:06]}  Kh8 {[%clk 0:00:06]} 74. Qe5+ {[%clk 0:00:06]} 1-0


[Site "https://www.chess.com"]

[Event "Titled Tuesday Blitz March 21 Early 2023"]
[White "Seo, Jung Min"]
[Black "Andreikin, Dmitry"]
[WhiteFideId "1734687"]
[BlackFideId "4158814"]
[WhiteElo "2468"]
[BlackElo "2736"]
[Result "1/2-1/2"]
[Round "09"]
[TimeControl "180+2"]
[Date "2023.03.21"]
[WhiteClock "0:00:09"]
[BlackClock "0:00:03"]

1. d4 {[%clk 0:03:00]}  Nf6 {[%clk 0:02:59]} 2. c4 {[%clk 0:03:00]}  e6 {[%clk 0:02:59]} 3. Nf3 {[%clk 0:03:00]}  d5 {[%clk 0:02:59]} 4. Nc3 {[%clk 0:03:00]}  c6 {[%clk 0:02:57]} 5. e3 {[%clk 0:02:59]}  Nbd7 {[%clk 0:02:56]} 6. Qc2 {[%clk 0:03:00]}  Bd6 {[%clk 0:02:54]} 7. b3 {[%clk 0:03:00]}  O-O {[%clk 0:02:53]} 8. Be2 {[%clk 0:02:59]}  dxc4 {[%clk 0:02:48]} 9. bxc4 {[%clk 0:02:48]}  e5 {[%clk 0:02:48]} 10. O-O {[%clk 0:02:48]}  Re8 {[%clk 0:02:48]} 11. Bb2 {[%clk 0:02:48]}  Qe7 {[%clk 0:02:45]} 12. Rae1 {[%clk 0:02:43]}  e4 {[%clk 0:02:37]} 13. Nd2 {[%clk 0:02:43]}  Nf8 {[%clk 0:02:36]} 14. c5 {[%clk 0:02:37]}  Bc7 {[%clk 0:02:31]} 15. Nc4 {[%clk 0:02:11]}  Ng6 {[%clk 0:02:24]} 16. Ba3 {[%clk 0:02:06]}  Bg4 {[%clk 0:02:13]} 17. Nd6 {[%clk 0:02:03]}  Bxe2 {[%clk 0:02:12]} 18. Qxe2 {[%clk 0:01:54]}  b5 {[%clk 0:02:07]} 19. Nxe8 {[%clk 0:01:34]}  Rxe8 {[%clk 0:02:04]} 20. f3 {[%clk 0:01:22]}  Ba5 {[%clk 0:01:57]} 21. Bb2 {[%clk 0:01:20]}  Bxc3 {[%clk 0:01:55]} 22. Bxc3 {[%clk 0:01:20]}  Nd5 {[%clk 0:01:56]} 23. Bd2 {[%clk 0:01:19]}  Qe6 {[%clk 0:01:55]} 24. a4 {[%clk 0:01:08]}  a6 {[%clk 0:01:54]} 25. Ra1 {[%clk 0:01:05]}  Nge7 {[%clk 0:01:43]} 26. axb5 {[%clk 0:01:01]}  axb5 {[%clk 0:01:44]} 27. Ra6 {[%clk 0:00:54]}  h6 {[%clk 0:01:40]} 28. fxe4 {[%clk 0:00:51]}  Qxe4 {[%clk 0:01:40]} 29. Qf3 {[%clk 0:00:52]}  Nf6 {[%clk 0:01:39]} 30. Be1 {[%clk 0:00:40]}  Qd3 {[%clk 0:01:12]} 31. Bh4 {[%clk 0:00:33]}  Ned5 {[%clk 0:01:12]} 32. Bxf6 {[%clk 0:00:33]}  Nxf6 {[%clk 0:01:13]} 33. Rxc6 {[%clk 0:00:26]}  b4 {[%clk 0:01:13]} 34. Rb6 {[%clk 0:00:23]}  b3 {[%clk 0:01:06]} 35. h3 {[%clk 0:00:22]}  Qc3 {[%clk 0:00:45]} 36. Kh1 {[%clk 0:00:18]}  Qc4 {[%clk 0:00:31]} 37. Rb1 {[%clk 0:00:15]}  Ne4 {[%clk 0:00:20]} 38. R6xb3 {[%clk 0:00:15]}  Nd2 {[%clk 0:00:19]} 39. Qd1 {[%clk 0:00:15]}  Nxb1 {[%clk 0:00:15]} 40. Qxb1 {[%clk 0:00:15]}  g5 {[%clk 0:00:13]} 41. Rb8 {[%clk 0:00:15]}  Rxb8 {[%clk 0:00:13]} 42. Qxb8+ {[%clk 0:00:15]}  Kg7 {[%clk 0:00:14]} 43. Qe5+ {[%clk 0:00:14]}  f6 {[%clk 0:00:12]} 44. Qe7+ {[%clk 0:00:14]}  Kg6 {[%clk 0:00:13]} 45. Qe4+ {[%clk 0:00:14]}  Kg7 {[%clk 0:00:13]} 46. Kh2 {[%clk 0:00:14]}  h5 {[%clk 0:00:12]} 47. c6 {[%clk 0:00:13]}  Kf8 {[%clk 0:00:11]} 48. Qg6 {[%clk 0:00:05]}  Qxc6 {[%clk 0:00:10]} 49. Qxh5 {[%clk 0:00:06]}  Qc7+ {[%clk 0:00:10]} 50. Kg1 {[%clk 0:00:06]}  Qc1+ {[%clk 0:00:09]} 51. Kf2 {[%clk 0:00:06]}  Kg7 {[%clk 0:00:09]} 52. Qe2 {[%clk 0:00:06]}  Qc3 {[%clk 0:00:10]} 53. Qd1 {[%clk 0:00:06]}  Qb2+ {[%clk 0:00:10]} 54. Kg1 {[%clk 0:00:06]}  Kf7 {[%clk 0:00:09]} 55. d5 {[%clk 0:00:07]}  Ke7 {[%clk 0:00:10]} 56. Qd4 {[%clk 0:00:05]}  Qb1+ {[%clk 0:00:07]} 57. Kf2 {[%clk 0:00:05]}  Qf5+ {[%clk 0:00:07]} 58. Ke2 {[%clk 0:00:05]}  Qc2+ {[%clk 0:00:05]} 59. Kf3 {[%clk 0:00:05]}  Qf5+ {[%clk 0:00:05]} 60. Kg3 {[%clk 0:00:06]}  Qf1 {[%clk 0:00:05]} 61. d6+ {[%clk 0:00:05]}  Kd7 {[%clk 0:00:05]} 62. Qd5 {[%clk 0:00:05]}  Qe1+ {[%clk 0:00:05]} 63. Kf3 {[%clk 0:00:05]}  Qf1+ {[%clk 0:00:05]} 64. Kg4 {[%clk 0:00:05]}  Qe2+ {[%clk 0:00:04]} 65. Kf5 {[%clk 0:00:03]}  Qf2+ {[%clk 0:00:04]} 66. Kg6 {[%clk 0:00:03]}  Qxe3 {[%clk 0:00:05]} 67. Kxf6 {[%clk 0:00:03]}  g4 {[%clk 0:00:05]} 68. Qf5+ {[%clk 0:00:02]}  Kxd6 {[%clk 0:00:05]} 69. Qxg4 {[%clk 0:00:03]}  Qe5+ {[%clk 0:00:05]} 70. Kg6 {[%clk 0:00:03]}  Qe8+ {[%clk 0:00:05]} 71. Kg5 {[%clk 0:00:03]}  Qe7+ {[%clk 0:00:06]} 72. Kh5 {[%clk 0:00:03]}  Qh7+ {[%clk 0:00:06]} 73. Kg5 {[%clk 0:00:04]}  Qe7+ {[%clk 0:00:07]} 74. Kf4 {[%clk 0:00:04]}  Qe5+ {[%clk 0:00:07]} 75. Kf3 {[%clk 0:00:05]}  Qc3+ {[%clk 0:00:06]} 76. Kf2 {[%clk 0:00:05]}  Qc5+ {[%clk 0:00:06]} 77. Kg3 {[%clk 0:00:05]}  Qe3+ {[%clk 0:00:05]} 78. Qf3 {[%clk 0:00:05]}  Qe1+ {[%clk 0:00:06]} 79. Kh2 {[%clk 0:00:06]}  Ke7 {[%clk 0:00:06]} 80. Qg3 {[%clk 0:00:06]}  Qc1 {[%clk 0:00:04]} 81. h4 {[%clk 0:00:06]}  Kf7 {[%clk 0:00:05]} 82. Qf3+ {[%clk 0:00:06]}  Kg7 {[%clk 0:00:04]} 83. Kh3 {[%clk 0:00:07]}  Kh8 {[%clk 0:00:04]} 84. g3 {[%clk 0:00:07]}  Qb1 {[%clk 0:00:03]} 85. Qf6+ {[%clk 0:00:07]}  Kg8 {[%clk 0:00:03]} 86. Kg4 {[%clk 0:00:07]}  Qe4+ {[%clk 0:00:02]} 87. Qf4 {[%clk 0:00:07]}  Qg6+ {[%clk 0:00:03]} 88. Kf3 {[%clk 0:00:08]}  Kh8 {[%clk 0:00:03]} 89. Qe4 {[%clk 0:00:09]}  Qf7+ {[%clk 0:00:02]} 90. Qf4 {[%clk 0:00:09]}  Qg6 {[%clk 0:00:03]} 91. Qe5+ {[%clk 0:00:09]}  Kg8 {[%clk 0:00:02]} 92. Qg5 {[%clk 0:00:09]}  Kh8 {[%clk 0:00:02]} 93. Kg4 {[%clk 0:00:08]}  Qe4+ {[%clk 0:00:02]} 94. Qf4 {[%clk 0:00:08]}  Qg6+ {[%clk 0:00:02]} 95. Kh3 {[%clk 0:00:09]}  Qe6+ {[%clk 0:00:02]} 96. g4 {[%clk 0:00:08]}  Qb3+ {[%clk 0:00:01]} 97. Kg2 {[%clk 0:00:09]}  Qd5+ {[%clk 0:00:01]} 98. Kg3 {[%clk 0:00:09]}  Qd3+ {[%clk 0:00:01]} 99. Qf3 {[%clk 0:00:10]}  Qd6+ {[%clk 0:00:02]} 100. Kh3 {[%clk 0:00:10]}  Qd2 {[%clk 0:00:01]} 101. h5 {[%clk 0:00:11]}  Kg8 {[%clk 0:00:01]} 102. Qf5 {[%clk 0:00:10]}  Qe1 {[%clk 0:00:01]} 103. g5 {[%clk 0:00:09]}  Qh1+ {[%clk 0:00:01]} 104. Kg4 {[%clk 0:00:10]}  Qg2+ {[%clk 0:00:02]} 105. Kf4 {[%clk 0:00:10]}  Qf2+ {[%clk 0:00:01]} 106. Ke5 {[%clk 0:00:08]}  Qc5+ {[%clk 0:00:02]} 107. Kf6 {[%clk 0:00:08]}  Qf8+ {[%clk 0:00:03]} 108. Ke6 {[%clk 0:00:08]}  Qc8+ {[%clk 0:00:03]} 109. Ke5 {[%clk 0:00:08]}  Qc5+ {[%clk 0:00:03]} 110. Kf4 {[%clk 0:00:09]}  Qf2+ {[%clk 0:00:03]} 111. Ke4 {[%clk 0:00:08]}  Qc2+ {[%clk 0:00:03]} 112. Ke5 {[%clk 0:00:09]}  Qc5+ {[%clk 0:00:03]} 1/2-1/2


[Site "https://www.chess.com"]

[Event "Titled Tuesday Blitz March 21 Early 2023"]
[White "Grigoriants, Sergey"]
[Black "Flores, Diego"]
[WhiteFideId "4130804"]
[BlackFideId "108049"]
[WhiteElo "2502"]
[BlackElo "2606"]
[Result "1-0"]
[Round "09"]
[TimeControl "180+2"]
[Date "2023.03.21"]
[WhiteClock "0:00:10"]
[BlackClock "0:00:20"]

1. d4 {[%clk 0:02:50]}  Nf6 {[%clk 0:02:59]} 2. c4 {[%clk 0:02:49]}  e6 {[%clk 0:02:58]} 3. Nf3 {[%clk 0:02:45]}  c5 {[%clk 0:02:50]} 4. d5 {[%clk 0:02:43]}  exd5 {[%clk 0:02:51]} 5. cxd5 {[%clk 0:02:44]}  d6 {[%clk 0:02:51]} 6. Nc3 {[%clk 0:02:44]}  g6 {[%clk 0:02:52]} 7. h3 {[%clk 0:02:44]}  Bg7 {[%clk 0:02:49]} 8. Bf4 {[%clk 0:02:45]}  O-O {[%clk 0:02:47]} 9. e3 {[%clk 0:02:45]}  Na6 {[%clk 0:02:42]} 10. Be2 {[%clk 0:02:44]}  Nc7 {[%clk 0:02:41]} 11. a4 {[%clk 0:02:42]}  Re8 {[%clk 0:02:34]} 12. O-O {[%clk 0:02:41]}  b6 {[%clk 0:02:34]} 13. Bc4 {[%clk 0:02:26]}  a6 {[%clk 0:02:20]} 14. Re1 {[%clk 0:01:44]}  Rb8 {[%clk 0:02:15]} 15. Qd3 {[%clk 0:01:34]}  b5 {[%clk 0:02:04]} 16. axb5 {[%clk 0:01:34]}  axb5 {[%clk 0:02:04]} 17. Nxb5 {[%clk 0:01:35]}  Bf5 {[%clk 0:01:57]} 18. Qf1 {[%clk 0:01:35]}  Ne4 {[%clk 0:01:21]} 19. Ra7 {[%clk 0:01:24]}  Nxb5 {[%clk 0:01:14]} 20. Bxb5 {[%clk 0:01:24]}  Re7 {[%clk 0:01:14]} 21. Rxe7 {[%clk 0:01:17]}  Qxe7 {[%clk 0:01:15]} 22. b3 {[%clk 0:01:17]}  g5 {[%clk 0:01:01]} 23. Bh2 {[%clk 0:01:16]}  g4 {[%clk 0:00:53]} 24. hxg4 {[%clk 0:01:12]}  Bxg4 {[%clk 0:00:54]} 25. Bd3 {[%clk 0:01:05]}  Bxf3 {[%clk 0:00:49]} 26. gxf3 {[%clk 0:01:05]}  Ng5 {[%clk 0:00:50]} 27. Qg2 {[%clk 0:00:57]}  Rxb3 {[%clk 0:00:48]} 28. Bf1 {[%clk 0:00:32]}  h5 {[%clk 0:00:46]} 29. Bf4 {[%clk 0:00:25]}  Nh7 {[%clk 0:00:42]} 30. Qh3 {[%clk 0:00:24]}  Nf6 {[%clk 0:00:39]} 31. Qc8+ {[%clk 0:00:18]}  Qf8 {[%clk 0:00:37]} 32. Qf5 {[%clk 0:00:17]}  Qe7 {[%clk 0:00:31]} 33. Bg5 {[%clk 0:00:17]}  Qd7 {[%clk 0:00:29]} 34. Qxd7 {[%clk 0:00:08]}  Nxd7 {[%clk 0:00:30]} 35. Be7 {[%clk 0:00:09]}  Bf8 {[%clk 0:00:30]} 36. Bh4 {[%clk 0:00:08]}  Ne5 {[%clk 0:00:30]} 37. Be2 {[%clk 0:00:08]}  Rb2 {[%clk 0:00:30]} 38. Kg2 {[%clk 0:00:08]}  c4 {[%clk 0:00:30]} 39. f4 {[%clk 0:00:08]}  Nd3 {[%clk 0:00:29]} 40. Bxd3 {[%clk 0:00:09]}  cxd3 {[%clk 0:00:30]} 41. Rd1 {[%clk 0:00:10]}  Rb3 {[%clk 0:00:30]} 42. Bf6 {[%clk 0:00:09]}  Bg7 {[%clk 0:00:29]} 43. Bxg7 {[%clk 0:00:08]}  Kxg7 {[%clk 0:00:30]} 44. Kf3 {[%clk 0:00:09]}  f5 {[%clk 0:00:30]} 45. Rd2 {[%clk 0:00:07]}  h4 {[%clk 0:00:29]} 46. Kg2 {[%clk 0:00:06]}  Kg6 {[%clk 0:00:30]} 47. Kh3 {[%clk 0:00:07]}  Kh5 {[%clk 0:00:30]} 48. Rd1 {[%clk 0:00:07]}  Ra3 {[%clk 0:00:30]} 49. Rd2 {[%clk 0:00:07]}  Ra1 {[%clk 0:00:29]} 50. Rxd3 {[%clk 0:00:07]}  Rh1+ {[%clk 0:00:29]} 51. Kg2 {[%clk 0:00:07]}  Rc1 {[%clk 0:00:28]} 52. Ra3 {[%clk 0:00:06]}  Rd1 {[%clk 0:00:25]} 53. Ra8 {[%clk 0:00:06]}  Rxd5 {[%clk 0:00:25]} 54. Rg8 {[%clk 0:00:07]}  Rd2 {[%clk 0:00:23]} 55. Rg5+ {[%clk 0:00:06]}  Kh6 {[%clk 0:00:24]} 56. Rxf5 {[%clk 0:00:07]}  h3+ {[%clk 0:00:24]} 57. Kxh3 {[%clk 0:00:07]}  Rxf2 {[%clk 0:00:25]} 58. Kg3 {[%clk 0:00:07]}  Rd2 {[%clk 0:00:24]} 59. Kf3 {[%clk 0:00:07]}  Kg6 {[%clk 0:00:24]} 60. e4 {[%clk 0:00:06]}  Rd3+ {[%clk 0:00:23]} 61. Ke2 {[%clk 0:00:06]}  Rd4 {[%clk 0:00:21]} 62. Ke3 {[%clk 0:00:07]}  Rd1 {[%clk 0:00:21]} 63. Rd5 {[%clk 0:00:06]}  Rxd5 {[%clk 0:00:21]} 64. exd5 {[%clk 0:00:06]}  Kh5 {[%clk 0:00:21]} 65. Kd4 {[%clk 0:00:03]}  Kh4 {[%clk 0:00:19]} 66. Ke4 {[%clk 0:00:04]}  Kg4 {[%clk 0:00:19]} 67. Ke3 {[%clk 0:00:05]}  Kh4 {[%clk 0:00:17]} 68. Kf3 {[%clk 0:00:05]}  Kh5 {[%clk 0:00:17]} 69. Kg3 {[%clk 0:00:06]}  Kh6 {[%clk 0:00:17]} 70. Kh4 {[%clk 0:00:06]}  Kg6 {[%clk 0:00:17]} 71. Kg4 {[%clk 0:00:06]}  Kf6 {[%clk 0:00:18]} 72. f5 {[%clk 0:00:07]}  Ke5 {[%clk 0:00:18]} 73. Kg5 {[%clk 0:00:08]}  Kxd5 {[%clk 0:00:18]} 74. f6 {[%clk 0:00:08]}  Ke6 {[%clk 0:00:19]} 75. Kg6 {[%clk 0:00:09]}  d5 {[%clk 0:00:20]} 76. f7 {[%clk 0:00:10]}  d4 {[%clk 0:00:20]} 77. f8=Q {[%clk 0:00:10]} 1-0


[Site "https://www.chess.com"]

[Event "Titled Tuesday Blitz March 21 Early 2023"]
[White "Chigaev, Maksim"]
[Black "Yuan, Qingyu"]
[WhiteFideId "4108116"]
[BlackFideId "8609772"]
[WhiteElo "2547"]
[BlackElo "2359"]
[Result "1-0"]
[Round "09"]
[TimeControl "180+2"]
[Date "2023.03.21"]
[WhiteClock "0:00:07"]
[BlackClock "0:00:01"]

1. e4 {[%clk 0:03:00]}  e5 {[%clk 0:03:00]} 2. Nf3 {[%clk 0:03:01]}  Nc6 {[%clk 0:03:00]} 3. Bb5 {[%clk 0:03:01]}  Nf6 {[%clk 0:03:00]} 4. d3 {[%clk 0:03:01]}  Bc5 {[%clk 0:03:00]} 5. c3 {[%clk 0:03:01]}  d5 {[%clk 0:03:01]} 6. exd5 {[%clk 0:02:59]}  Qxd5 {[%clk 0:03:02]} 7. Bc4 {[%clk 0:03:00]}  Qd6 {[%clk 0:03:01]} 8. Nbd2 {[%clk 0:03:00]}  Bf5 {[%clk 0:02:52]} 9. b4 {[%clk 0:02:59]}  Bb6 {[%clk 0:02:50]} 10. Ng5 {[%clk 0:02:58]}  O-O {[%clk 0:02:36]} 11. Nde4 {[%clk 0:02:58]}  Bxe4 {[%clk 0:02:03]} 12. Nxe4 {[%clk 0:02:44]}  Nxe4 {[%clk 0:01:59]} 13. dxe4 {[%clk 0:02:45]}  Qxd1+ {[%clk 0:01:57]} 14. Kxd1 {[%clk 0:02:45]}  Bxf2 {[%clk 0:01:53]} 15. Rf1 {[%clk 0:02:40]}  Bh4 {[%clk 0:01:47]} 16. Kc2 {[%clk 0:02:31]}  Nd8 {[%clk 0:01:30]} 17. a4 {[%clk 0:02:22]}  a5 {[%clk 0:01:14]} 18. b5 {[%clk 0:01:59]}  Be7 {[%clk 0:01:13]} 19. Be3 {[%clk 0:01:56]}  Ne6 {[%clk 0:01:11]} 20. Rad1 {[%clk 0:01:47]}  Rad8 {[%clk 0:00:57]} 21. Rxd8 {[%clk 0:00:58]}  Rxd8 {[%clk 0:00:52]} 22. b6 {[%clk 0:00:57]}  c6 {[%clk 0:00:41]} 23. g3 {[%clk 0:00:51]}  Rd7 {[%clk 0:00:30]} 24. h4 {[%clk 0:00:49]}  g6 {[%clk 0:00:20]} 25. h5 {[%clk 0:00:42]}  Kg7 {[%clk 0:00:10]} 26. h6+ {[%clk 0:00:37]}  Kg8 {[%clk 0:00:10]} 27. Kb3 {[%clk 0:00:28]}  Rd6 {[%clk 0:00:03]} 28. Bxe6 {[%clk 0:00:07]}  Rxe6 {[%clk 0:00:03]} 29. Kc4 {[%clk 0:00:08]}  Rd6 {[%clk 0:00:03]} 30. Bc5 {[%clk 0:00:09]}  Re6 {[%clk 0:00:02]} 31. Bxe7 {[%clk 0:00:09]}  Rxe7 {[%clk 0:00:03]} 32. Rd1 {[%clk 0:00:08]}  Kf8 {[%clk 0:00:03]} 33. g4 {[%clk 0:00:04]}  f6 {[%clk 0:00:04]} 34. Rd6 {[%clk 0:00:04]}  Kf7 {[%clk 0:00:04]} 35. Kc5 {[%clk 0:00:05]}  g5 {[%clk 0:00:04]} 36. Rd8 {[%clk 0:00:04]}  Kg6 {[%clk 0:00:04]} 37. Ra8 {[%clk 0:00:04]}  Kxh6 {[%clk 0:00:04]} 38. Rxa5 {[%clk 0:00:04]}  Kg6 {[%clk 0:00:04]} 39. Ra7 {[%clk 0:00:05]}  h5 {[%clk 0:00:05]} 40. gxh5+ {[%clk 0:00:06]}  Kxh5 {[%clk 0:00:05]} 41. a5 {[%clk 0:00:07]}  g4 {[%clk 0:00:05]} 42. a6 {[%clk 0:00:07]}  g3 {[%clk 0:00:05]} 43. axb7 {[%clk 0:00:06]}  g2 {[%clk 0:00:05]} 44. b8=Q {[%clk 0:00:06]}  g1=Q+ {[%clk 0:00:06]} 45. Kd6 {[%clk 0:00:07]}  Rg7 {[%clk 0:00:02]} 46. Qh8+ {[%clk 0:00:07]}  Kg4 {[%clk 0:00:01]} 47. Rxg7+ {[%clk 0:00:07]} 1-0


[Site "https://www.chess.com"]